[Event "Belt Road Women 2019"]
[Site "Shaoxing"]
[Date "2019.07.10"]
[Round "3.9"]
[White "Pratyusha, Bodda"]
[Black "Khademalsharieh, Sarasadat"]
[Result "1-0"]
[ECO "D31"]
[WhiteElo "2265"]
[BlackElo "2481"]
[Annotator "ChessBase"]
[PlyCount "75"]
[EventDate "2019.07.08"]
[EventType "swiss"]
[EventCountry "CHN"]
[SourceTitle "playchess.com"]
[Source "ChessBase"]
[SourceQuality "1"]
[TimeControl "5400+30"]

1. d4 {[%emt 0:00:41]} d5 {[%emt 0:00:00]} 2. c4 {[%emt 0:00:07]} e6 {[%emt 0:00:00]} 3. Nc3 {[%emt 0:00:19]} a6 {[%emt 0:00:21]} 4. cxd5 {[%emt 0:01:24]} exd5 {[%emt 0:00:09]} 5. Bf4 {[%emt 0:00:28]} Nf6 {[%emt 0:00:35]} 6. e3 {[%emt 0:00:26]} Bd6 {[%emt 0:00:25]} 7. Bg3 {[%emt 0:00:55]} Bxg3 {[%emt 0:07:23]} 8. hxg3 {[%emt 0:00:28]} Bf5 {[%emt 0:04:48]} 9. Nf3 {[%emt 0:01:55]} Nbd7 {[%emt 0:04:12]} 10. Qb3 {[%emt 0:03:18]} Nb6 {[%emt 0:02:46]} 11. Ne5 {[%emt 0:00:46]} Qd6 {[%emt 0:03:26]} 12. a4 {[%emt 0:03:57]} O-O {[%emt 0:02:33]} 13. Be2 {[%emt 0:01:16]} h6 {[%emt 0:03:41]} 14. O-O {[%emt 0:13:04]} a5 {[%emt 0:06:14]} 15. g4 {[%emt 0:07:02]} Bh7 {[%emt 0:02:51]} 16. Rfc1 {[%emt 0:02:21]} Qd8 {[%emt 0:01:01]} 17. Qa3 {[%emt 0:04:30]} Ne8 {[%emt 0:14:19]} 18. b4 {[%emt 0:04:46]} Nd6 {[%emt 0:08:02]} 19. b5 {[%emt 0:04:41]} f6 {[%emt 0:01:36]} 20. Nf3 {[%emt 0:01:00]} Kh8 {[%emt 0:02:06]} 21. Qc5 {[%emt 0:05:10]} Rc8 {[%emt 0:02:11]} 22. Nd2 {[%emt 0:02:41]} Bg8 {[%emt 0:04:10]} 23. Bf3 {[%emt 0:02:36]} f5 {[%emt 0:03:22]} 24. gxf5 {[%emt 0:04:54]} Nxf5 {[%emt 0:00:08]} 25. Ne2 {[%emt 0:01:13]} Nh4 {[%emt 0:01:29]} 26. Nf4 {[%emt 0:01:25]} Qg5 {[%emt 0:06:21]} 27. Kf1 {[%emt 0:07:11]} Qf6 {[%emt 0:01:49]} 28. Ke2 {[%emt 0:02:26]} Nf5 {[%emt 0:06:31]} 29. Bh5 {[%emt 0:05:51]} Bh7 {[%emt 0:01:14]} 30. Nf3 {[%emt 0:01:01]} Rfd8 {[%emt 0:07:38]} 31. Ne5 {[%emt 0:01:49]} Nd6 {[%emt 0:00:33]} 32. f3 {[%emt 0:02:21]} Nbc4 {[%emt 0:02:46]} 33. Nxd5 {[%emt 0:02:54]} Qg5 {[%emt 0:00:06]} 34. Nf4 {[%emt 0:00:11]} b6 {[%emt 0:01:27]} 35. Qxc4 {[%emt 0:02:30]} Nxc4 {[%emt 0:00:29]} 36. Nf7+ {[%emt 0:00:04]} Kg8 {[%emt 0:00:05]} 37. Nxg5 {[%emt 0:00:06]} hxg5 {[%emt 0:00:02]} 38. Ne6 {[%emt 0:00:25]} 1-0

[Event "Belt Road Women 2019"]
[Site "Shaoxing"]
[Date "2019.07.10"]
[Round "3.10"]
[White "Gu, Tianlu"]
[Black "Munkhzul, Turmunkh"]
[Result "1/2-1/2"]
[ECO "B40"]
[WhiteElo "2205"]
[BlackElo "2386"]
[Annotator "NA"]
[PlyCount "116"]
[EventDate "2019.07.08"]
[EventType "swiss"]
[EventCountry "CHN"]
[SourceTitle "playchess.com"]
[Source "ChessBase"]
[SourceQuality "1"]
[TimeControl "5400+30"]

1. e4 {[%emt 0:00:00]} c5 {[%emt 0:00:59]} 2. Nf3 {[%emt 0:00:19]} e6 {[%emt 0:01:11]} 3. g3 {[%emt 0:01:38]} d5 {[%emt 0:01:22]} 4. exd5 {[%emt 0:01:02]} exd5 {[%emt 0:00:33]} 5. d4 {[%emt 0:00:30]} Nc6 {[%emt 0:01:55]} 6. Bg2 {[%emt 0:07:30]} Nf6 {[%emt 0:02:23]} 7. Nc3 {[%emt 0:00:30]} Bg4 {[%emt 0:07:09]} 8. h3 {[%emt 0:02:24]} Bxf3 {[%emt 0:03:28]} 9. Qxf3 {[%emt 0:00:13]} Nxd4 {[%emt 0:03:41]} 10. Qd3 {[%emt 0:00:09]} Be7 {[%emt 0:05:28]} 11. O-O {[%emt 0:03:00]} O-O {[%emt 0:01:53]} 12. Bg5 {[%emt 0:02:37]} Re8 {[%emt 0:18:03]} 13. Bxf6 {[%emt 0:05:29]} Bxf6 {[%emt 0:00:24]} 14. Nxd5 {[%emt 0:00:07]} Rc8 {[%emt 0:11:18]} 15. c3 {[%emt 0:05:01]} Ne6 {[%emt 0:07:23]} 16. Rad1 {[%emt 0:11:39]} Nc7 {[%emt 0:06:02]} 17. Qf5 {[%emt 0:09:31]} Nxd5 {[%emt 0:01:15]} 18. Rxd5 {[%emt 0:01:00]} Qb6 {[%emt 0:02:36]} 19. Rd7 {[%emt 0:00:16]} Re5 {[%emt 0:03:57]} 20. Qg4 {[%emt 0:05:37]} Rc7 {[%emt 0:05:24]} 21. Rfd1 {[%emt 0:11:27]} h5 {[%emt 0:02:28]} 22. Qc4 {[%emt 0:00:29]} Rxd7 {[%emt 0:00:38]} 23. Rxd7 {[%emt 0:00:12]} Re1+ {[%emt 0:00:28]} 24. Kh2 {[%emt 0:00:17]} Re7 {[%emt 0:03:10]} 25. Qd5 {[%emt 0:03:59]} Rxd7 {[%emt 0:01:15]} 26. Qxd7 {[%emt 0:00:12]} Qd8 {[%emt 0:04:34]} 27. Qxb7 {[%emt 0:00:45]} Qe7 {[%emt 0:00:26]} 28. Qa8+ {[%emt 0:02:03]} Kh7 {[%emt 0:00:14]} 29. Qd5 {[%emt 0:00:10]} g6 {[%emt 0:00:30]} 30. b4 {[%emt 0:00:49]} cxb4 {[%emt 0:00:33]} 31. cxb4 {[%emt 0:00:25]} h4 {[%emt 0:00:21]} 32. Bf1 {[%emt 0:02:28]} hxg3+ {[%emt 0:00:56]} 33. fxg3 {[%emt 0:00:08]} Kg7 {[%emt 0:00:32]} 34. Bc4 {[%emt 0:00:36]} Qc7 {[%emt 0:00:17]} 35. Kg2 {[%emt 0:00:43]} Be5 {[%emt 0:01:41]} 36. g4 {[%emt 0:03:14]} Qe7 {[%emt 0:00:34]} 37. a4 {[%emt 0:01:40]} Qf6 {[%emt 0:05:21]} 38. Qe4 {[%emt 0:07:34]} Bd4 {[%emt 0:00:00]} 39. Qf3 {[%emt 0:00:41]} Qxf3+ {[%emt 0:00:00]} 40. Kxf3 {[%emt 0:00:05]} Bc3 {[%emt 0:00:00]} 41. b5 {[%emt 0:00:21]} f5 {[%emt 0:00:00]} 42. Kf4 {[%emt 0:01:31]} Kf6 {[%emt 0:00:00]} 43. g5+ {[%emt 0:02:17]} Kg7 {[%emt 0:00:00]} 44. h4 {[%emt 0:01:16]} Be1 {[%emt 0:00:00]} 45. Kf3 {[%emt 0:03:00]} Kf8 {[%emt 0:00:04]} 46. h5 {[%emt 0:01:13]} gxh5 {[%emt 0:01:10]} 47. Kf4 {[%emt 0:01:58]} h4 {[%emt 0:00:33]} 48. Kxf5 {[%emt 0:00:09]} h3 {[%emt 0:00:16]} 49. Kg6 {[%emt 0:00:39]} h2 {[%emt 0:00:06]} 50. Bd5 {[%emt 0:00:05]} Ke7 {[%emt 0:00:11]} 51. Kf5 {[%emt 0:04:05]} Kd6 {[%emt 0:00:18]} 52. Bf3 {[%emt 0:00:48]} Kc5 {[%emt 0:00:17]} 53. g6 {[%emt 0:00:06]} Bc3 {[%emt 0:00:05]} 54. Kg4 {[%emt 0:01:03]} Kb4 {[%emt 0:00:08]} 55. Kh3 {[%emt 0:00:08]} Be5 {[%emt 0:00:16]} 56. g7 {[%emt 0:00:07]} Bxg7 {[%emt 0:00:05]} 57. Kxh2 {[%emt 0:00:04]} Kxa4 {[%emt 0:00:07]} 58. Be2 {[%emt 0:00:09]} Bd4 {[%emt 0:00:07]} 1/2-1/2

[Event "Belt Road Women 2019"]
[Site "Shaoxing"]
[Date "2019.07.10"]
[Round "3.11"]
[White "Zhang, Lanlin"]
[Black "Pujari, Rucha"]
[Result "1-0"]
[ECO "C95"]
[WhiteElo "2195"]
[BlackElo "2268"]
[Annotator "NA"]
[PlyCount "183"]
[EventDate "2019.07.08"]
[EventType "swiss"]
[EventCountry "CHN"]
[SourceTitle "playchess.com"]
[Source "ChessBase"]
[SourceQuality "1"]
[TimeControl "5400+30"]

1. e4 {[%emt 0:00:22]} e5 {[%emt 0:02:11]} 2. Nf3 {[%emt 0:00:20]} Nc6 {[%emt 0:00:27]} 3. Bb5 {[%emt 0:00:19]} a6 {[%emt 0:00:20]} 4. Ba4 {[%emt 0:00:07]} Nf6 {[%emt 0:00:09]} 5. O-O {[%emt 0:00:05]} Be7 {[%emt 0:00:19]} 6. Re1 {[%emt 0:00:30]} b5 {[%emt 0:00:16]} 7. Bb3 {[%emt 0:00:07]} O-O {[%emt 0:00:31]} 8. c3 {[%emt 0:01:55]} d6 {[%emt 0:00:13]} 9. h3 {[%emt 0:00:05]} Nb8 {[%emt 0:00:21]} 10. d4 {[%emt 0:00:06]} Nbd7 {[%emt 0:00:06]} 11. Nbd2 {[%emt 0:00:05]} Bb7 {[%emt 0:00:23]} 12. Bc2 {[%emt 0:00:10]} Re8 {[%emt 0:00:10]} 13. a4 {[%emt 0:00:05]} Bf8 {[%emt 0:01:07]} 14. Bd3 {[%emt 0:04:57]} c6 {[%emt 0:00:23]} 15. Nf1 {[%emt 0:03:59]} g6 {[%emt 0:00:53]} 16. Ng3 {[%emt 0:04:32]} Bg7 {[%emt 0:00:22]} 17. Bd2 {[%emt 0:02:24]} Qe7 {[%emt 0:02:01]} 18. Nh2 {[%emt 0:01:14]} h5 {[%emt 0:09:23]} 19. f4 {[%emt 0:12:09]} h4 {[%emt 0:05:24]} 20. Ngf1 {[%emt 0:00:25]} Nh5 {[%emt 0:17:49]} 21. fxe5 {[%emt 0:14:35]} dxe5 {[%emt 0:00:00]} 22. Nf3 {[%emt 0:00:08]} Rad8 {[%emt 0:00:00]} 23. Qc2 {[%emt 0:14:19]} exd4 {[%emt 0:09:27]} 24. cxd4 {[%emt 0:02:55]} Nf8 {[%emt 0:07:18]} 25. Be3 {[%emt 0:03:03]} Ne6 {[%emt 0:00:00]} 26. Qf2 {[%emt 0:06:24]} Nhf4 {[%emt 0:04:41]} 27. Bc2 {[%emt 0:05:41]} g5 {[%emt 0:01:22]} 28. axb5 {[%emt 0:03:29]} axb5 {[%emt 0:00:51]} 29. N1d2 {[%emt 0:15:08]} Nh5 {[%emt 0:01:40]} 30. e5 {[%emt 0:00:00]} c5 {[%emt 0:22:43]} 31. dxc5 {[%emt 0:00:00]} Ng3 {[%emt 0:00:31]} 32. Ra7 {[%emt 0:00:00]} Ra8 {[%emt 0:01:41]} 33. Rxa8 {[%emt 0:00:00]} Bxa8 {[%emt 0:02:00]} 34. b4 {[%emt 0:00:00]} Bd5 {[%emt 0:03:11]} 35. Bd3 {[%emt 0:00:00]} Bc6 {[%emt 0:02:55]} 36. Nf1 {[%emt 0:00:00]} Rd8 {[%emt 0:02:54]} 37. Bb1 {[%emt 0:00:00]} Bxf3 {[%emt 0:01:15]} 38. Nxg3 {[%emt 0:00:00]} hxg3 {[%emt 0:00:02]} 39. Qxf3 {[%emt 0:00:00]} Bxe5 {[%emt 0:00:10]} 40. Qf5 {[%emt 0:00:00]} Qf6 {[%emt 0:00:33]} 41. c6 {[%emt 0:01:58]} Qxf5 {[%emt 0:01:45]} 42. Bxf5 {[%emt 0:00:06]} Bc3 {[%emt 0:02:05]} 43. Rc1 {[%emt 0:00:41]} Bxb4 {[%emt 0:00:59]} 44. Bxe6 {[%emt 0:00:05]} fxe6 {[%emt 0:00:08]} 45. c7 {[%emt 0:00:02]} Rc8 {[%emt 0:00:20]} 46. Bxg5 {[%emt 0:00:37]} Bd6 {[%emt 0:00:46]} 47. Bd8 {[%emt 0:00:05]} b4 {[%emt 0:00:42]} 48. Kf1 {[%emt 0:00:09]} Kf7 {[%emt 0:00:36]} 49. Ke2 {[%emt 0:00:48]} Ke8 {[%emt 0:00:27]} 50. Kf3 {[%emt 0:01:07]} Kd7 {[%emt 0:00:28]} 51. Rd1 {[%emt 0:02:34]} Kc6 {[%emt 0:00:36]} 52. Rb1 {[%emt 0:01:15]} Kb5 {[%emt 0:00:12]} 53. h4 {[%emt 0:02:11]} Be5 {[%emt 0:00:28]} 54. h5 {[%emt 0:01:13]} Ka4 {[%emt 0:00:50]} 55. h6 {[%emt 0:00:52]} b3 {[%emt 0:00:11]} 56. h7 {[%emt 0:00:32]} b2 {[%emt 0:00:13]} 57. Ke4 {[%emt 0:00:03]} Bh8 {[%emt 0:00:32]} 58. Kd3 {[%emt 0:00:48]} Kb3 {[%emt 0:00:04]} 59. Rf1 {[%emt 0:01:26]} Ka2 {[%emt 0:00:42]} 60. Kc2 {[%emt 0:00:07]} Be5 {[%emt 0:00:17]} 61. Rb1 {[%emt 0:00:59]} Bh8 {[%emt 0:00:44]} 62. Rf1 {[%emt 0:00:12]} e5 {[%emt 0:00:28]} 63. Rb1 {[%emt 0:00:39]} e4 {[%emt 0:00:06]} 64. Rh1 {[%emt 0:00:14]} Be5 {[%emt 0:00:39]} 65. Rb1 {[%emt 0:00:03]} e3 {[%emt 0:00:13]} 66. Rxb2+ {[%emt 0:00:58]} Bxb2 {[%emt 0:00:07]} 67. Kd3 {[%emt 0:00:01]} Kb3 {[%emt 0:01:52]} 68. Kxe3 {[%emt 0:00:02]} Kc4 {[%emt 0:00:10]} 69. Kf4 {[%emt 0:00:11]} Kd5 {[%emt 0:00:21]} 70. Kxg3 {[%emt 0:01:19]} Ke6 {[%emt 0:00:23]} 71. Kf4 {[%emt 0:00:30]} Bf6 {[%emt 0:00:59]} 72. Ke4 {[%emt 0:00:02]} Be5 {[%emt 0:00:56]} 73. g4 {[%emt 0:00:08]} Ra8 {[%emt 0:00:24]} 74. g5 {[%emt 0:01:00]} Ra4+ {[%emt 0:00:21]} 75. Kf3 {[%emt 0:01:49]} Kd7 {[%emt 0:00:43]} 76. Bf6 {[%emt 0:01:30]} Bxf6 {[%emt 0:00:35]} 77. c8=Q+ {[%emt 0:00:13]} Kxc8 {[%emt 0:00:16]} 78. gxf6 {[%emt 0:00:03]} Rh4 {[%emt 0:00:41]} 79. f7 {[%emt 0:00:03]} Rxh7 {[%emt 0:00:32]} 80. f8=Q+ {[%emt 0:00:05]} Kb7 {[%emt 0:00:32]} 81. Ke4 {[%emt 0:01:01]} Rd7 {[%emt 0:00:22]} 82. Ke5 {[%emt 0:00:10]} Rc7 {[%emt 0:00:33]} 83. Kd5 {[%emt 0:00:28]} Rc6 {[%emt 0:00:35]} 84. Qe8 {[%emt 0:00:20]} Rc7 {[%emt 0:00:29]} 85. Qb5+ {[%emt 0:00:06]} Ka7 {[%emt 0:00:28]} 86. Kd6 {[%emt 0:00:07]} Rb7 {[%emt 0:00:14]} 87. Qa5+ {[%emt 0:00:03]} Kb8 {[%emt 0:00:05]} 88. Kc6 {[%emt 0:00:03]} Rb1 {[%emt 0:01:10]} 89. Qe5+ {[%emt 0:00:08]} Ka7 {[%emt 0:00:29]} 90. Qd4+ {[%emt 0:00:24]} Ka8 {[%emt 0:00:28]} 91. Qh8+ {[%emt 0:00:06]} Rb8 {[%emt 0:00:21]} 92. Qa1# {[%emt 0:00:03]} 1-0

[Event "Belt Road Women 2019"]
[Site "Shaoxing"]
[Date "2019.07.10"]
[Round "3.12"]
[White "Batsiashvili, Nino"]
[Black "Du, Yuxin"]
[Result "1-0"]
[ECO "E01"]
[WhiteElo "2433"]
[BlackElo "2015"]
[Annotator "NA"]
[PlyCount "89"]
[EventDate "2019.07.08"]
[EventType "swiss"]
[EventCountry "CHN"]
[SourceTitle "playchess.com"]
[Source "ChessBase"]
[SourceQuality "1"]
[TimeControl "5400+30"]

1. d4 {[%emt 0:00:00]} Nf6 {[%emt 0:00:00]} 2. c4 {[%emt 0:00:00]} e6 {[%emt 0:00:00]} 3. g3 {[%emt 0:00:00]} d5 {[%emt 0:03:56]} 4. Nf3 {[%emt 0:00:04]} Bb4+ {[%emt 0:02:02]} 5. Nbd2 {[%emt 0:03:06]} O-O {[%emt 0:08:28]} 6. Bg2 {[%emt 0:00:09]} c6 {[%emt 0:10:55]} 7. O-O {[%emt 0:00:25]} Nbd7 {[%emt 0:01:12]} 8. Qc2 {[%emt 0:04:38]} Be7 {[%emt 0:16:03]} 9. Rd1 {[%emt 0:03:59]} b6 {[%emt 0:09:05]} 10. e4 {[%emt 0:03:13]} dxe4 {[%emt 0:04:06]} 11. Nxe4 {[%emt 0:11:29]} Nxe4 {[%emt 0:03:55]} 12. Qxe4 {[%emt 0:00:01]} Bb7 {[%emt 0:00:42]} 13. Bf4 {[%emt 0:01:27]} Re8 {[%emt 0:10:36]} 14. Ne5 {[%emt 0:05:35]} Nxe5 {[%emt 0:01:34]} 15. Bxe5 {[%emt 0:00:20]} Bd6 {[%emt 0:06:51]} 16. Qg4 {[%emt 0:05:57]} f6 {[%emt 0:07:47]} 17. Rac1 {[%emt 0:06:46]} Rc8 {[%emt 0:03:28]} 18. Bxd6 {[%emt 0:05:25]} Qxd6 {[%emt 0:00:06]} 19. c5 {[%emt 0:03:09]} Qe7 {[%emt 0:03:05]} 20. b4 {[%emt 0:00:17]} b5 {[%emt 0:02:26]} 21. Re1 {[%emt 0:05:02]} Rc7 {[%emt 0:01:07]} 22. h4 {[%emt 0:02:20]} Qf7 {[%emt 0:01:08]} 23. Re3 {[%emt 0:03:31]} Bc8 {[%emt 0:00:55]} 24. Rce1 {[%emt 0:01:26]} Rd8 {[%emt 0:01:22]} 25. Qf4 {[%emt 0:01:51]} Kf8 {[%emt 0:00:56]} 26. a3 {[%emt 0:00:59]} a6 {[%emt 0:00:31]} 27. Bf3 {[%emt 0:04:03]} h6 {[%emt 0:00:33]} 28. h5 {[%emt 0:01:38]} Rcd7 {[%emt 0:00:24]} 29. Rxe6 {[%emt 0:07:39]} Rxd4 {[%emt 0:00:07]} 30. Re8+ {[%emt 0:03:06]} Rxe8 {[%emt 0:00:05]} 31. Rxe8+ {[%emt 0:00:03]} Qxe8 {[%emt 0:00:09]} 32. Qxd4 {[%emt 0:00:04]} Qd7 {[%emt 0:01:51]} 33. Qe4 {[%emt 0:01:37]} Bb7 {[%emt 0:00:15]} 34. Kg2 {[%emt 0:01:42]} Qe7 {[%emt 0:00:32]} 35. Qf4 {[%emt 0:03:36]} Kf7 {[%emt 0:00:43]} 36. Qb8 {[%emt 0:01:53]} Qd7 {[%emt 0:00:29]} 37. Bg4 {[%emt 0:04:12]} Qxg4 {[%emt 0:00:26]} 38. Qxb7+ Kf8 {[%emt 0:00:16]} 39. Qa8+ {[%emt 0:00:40]} Kf7 {[%emt 0:00:32]} 40. Qxc6 {[%emt 0:00:35]} Qxh5 {[%emt 0:00:08]} 41. Qd7+ {[%emt 0:02:46]} Kf8 {[%emt 0:00:26]} 42. c6 {[%emt 0:01:29]} Qe8 {[%emt 0:00:47]} 43. Qd6+ {[%emt 0:00:22]} Kf7 {[%emt 0:00:43]} 44. c7 {[%emt 0:01:57]} Qe4+ {[%emt 0:00:20]} 45. Kh2 {[%emt 0:00:27]} 1-0

[Event "Belt Road Women 2019"]
[Site "Shaoxing"]
[Date "2019.07.10"]
[Round "3.13"]
[White "Song, Yuxin"]
[Black "Xu, Yuze"]
[Result "1-0"]
[ECO "B36"]
[WhiteElo "2277"]
[BlackElo "2083"]
[Annotator "NA"]
[PlyCount "89"]
[EventDate "2019.07.08"]
[EventType "swiss"]
[EventCountry "CHN"]
[SourceTitle "playchess.com"]
[Source "ChessBase"]
[SourceQuality "1"]
[TimeControl "5400+30"]

1. e4 {[%emt 0:00:00]} c5 {[%emt 0:00:00]} 2. Nf3 {[%emt 0:00:00]} Nc6 {[%emt 0:00:00]} 3. d4 {[%emt 0:00:00]} cxd4 {[%emt 0:00:00]} 4. Nxd4 {[%emt 0:00:00]} g6 {[%emt 0:00:00]} 5. c4 {[%emt 0:00:00]} Nf6 {[%emt 0:00:00]} 6. Nc3 {[%emt 0:00:05]} Nxd4 {[%emt 0:00:05]} 7. Qxd4 {[%emt 0:00:07]} d6 {[%emt 0:00:03]} 8. Be3 {[%emt 0:00:09]} Bg7 {[%emt 0:00:06]} 9. f3 {[%emt 0:00:08]} O-O {[%emt 0:00:06]} 10. Qd2 {[%emt 0:00:05]} a5 {[%emt 0:00:07]} 11. b3 {[%emt 0:00:08]} a4 {[%emt 0:05:23]} 12. b4 {[%emt 0:00:07]} Be6 {[%emt 0:09:04]} 13. Rc1 {[%emt 0:00:07]} Nd7 {[%emt 0:02:17]} 14. Be2 {[%emt 0:00:05]} Nb6 {[%emt 0:23:24]} 15. Nd5 {[%emt 0:06:22]} Nxd5 {[%emt 0:01:36]} 16. exd5 {[%emt 0:01:31]} Bd7 {[%emt 0:01:40]} 17. a3 {[%emt 0:02:40]} e6 {[%emt 0:09:22]} 18. dxe6 {[%emt 0:31:43]} Bxe6 {[%emt 0:00:16]} 19. Bg5 {[%emt 0:01:05]} Qb6 {[%emt 0:08:16]} 20. Be3 {[%emt 0:10:54]} Qd8 {[%emt 0:00:27]} 21. O-O {[%emt 0:03:57]} d5 {[%emt 0:09:02]} 22. c5 {[%emt 0:04:53]} d4 {[%emt 0:14:32]} 23. Bg5 {[%emt 0:07:44]} Qd7 {[%emt 0:03:55]} 24. Bd3 {[%emt 0:01:16]} Rfe8 {[%emt 0:01:37]} 25. Qc2 {[%emt 0:05:54]} Bb3 {[%emt 0:02:53]} 26. Qf2 {[%emt 0:00:21]} h6 {[%emt 0:04:40]} 27. Bf4 {[%emt 0:04:39]} Rad8 {[%emt 0:01:20]} 28. b5 {[%emt 0:03:29]} Bd5 {[%emt 0:02:41]} 29. h4 {[%emt 0:00:52]} Rc8 {[%emt 0:00:51]} 30. Kh1 {[%emt 0:03:29]} h5 {[%emt 0:00:06]} 31. Rfd1 {[%emt 0:02:37]} Re6 {[%emt 0:00:50]} 32. Qg3 {[%emt 0:02:17]} Bf8 {[%emt 0:00:40]} 33. Bf5 {[%emt 0:01:08]} Bxc5 {[%emt 0:00:24]} 34. Be5 {[%emt 0:01:10]} Qe7 {[%emt 0:00:33]} 35. Bxd4 {[%emt 0:00:29]} b6 {[%emt 0:00:33]} 36. Bxc5 {[%emt 0:02:02]} Rxc5 {[%emt 0:00:20]} 37. Rxc5 {[%emt 0:00:01]} Qxc5 {[%emt 0:00:08]} 38. Bxe6 {[%emt 0:00:04]} Bxe6 {[%emt 0:00:09]} 39. Qg5 {[%emt 0:00:23]} Qxg5 {[%emt 0:01:13]} 40. hxg5 {[%emt 0:00:08]} Bc4 {[%emt 0:00:03]} 41. Rd6 {[%emt 0:01:30]} Bxb5 {[%emt 0:00:05]} 42. Rxb6 {[%emt 0:00:06]} Bd7 {[%emt 0:01:22]} 43. Kh2 {[%emt 0:00:06]} Kf8 {[%emt 0:00:10]} 44. Kg3 {[%emt 0:00:10]} Ke7 {[%emt 0:00:20]} 45. Kf4 {[%emt 0:00:06]} 1-0

[Event "Belt Road Women 2019"]
[Site "Shaoxing"]
[Date "2019.07.10"]
[Round "3.14"]
[White "Hu, Yu A."]
[Black "Zhang, Xiao"]
[Result "1/2-1/2"]
[ECO "B12"]
[WhiteElo "2095"]
[BlackElo "2259"]
[Annotator "NA"]
[PlyCount "40"]
[EventDate "2019.07.08"]
[EventType "swiss"]
[EventCountry "CHN"]
[SourceTitle "playchess.com"]
[Source "ChessBase"]
[SourceQuality "1"]
[TimeControl "5400+30"]

1. e4 {[%emt 0:00:00]} c6 {[%emt 0:00:00]} 2. d4 {[%emt 0:00:00]} d5 {[%emt 0:00:00]} 3. e5 {[%emt 0:01:06]} c5 {[%emt 0:00:13]} 4. dxc5 {[%emt 0:00:10]} e6 {[%emt 0:00:02]} 5. a3 {[%emt 0:00:11]} Bxc5 {[%emt 0:00:04]} 6. b4 {[%emt 0:00:11]} Bb6 {[%emt 0:00:04]} 7. Nf3 {[%emt 0:00:33]} Ne7 {[%emt 0:00:04]} 8. Bd3 {[%emt 0:00:19]} Ng6 {[%emt 0:00:19]} 9. Bb2 {[%emt 0:01:53]} Nf4 {[%emt 0:01:48]} 10. O-O {[%emt 0:00:11]} Nxd3 {[%emt 0:01:41]} 11. Qxd3 {[%emt 0:00:08]} O-O {[%emt 0:00:15]} 12. c4 {[%emt 0:02:34]} dxc4 {[%emt 0:04:17]} 13. Qxc4 {[%emt 0:00:08]} Bd7 {[%emt 0:00:36]} 14. Nc3 {[%emt 0:02:10]} Bc6 {[%emt 0:03:25]} 15. Rfd1 {[%emt 0:02:56]} Qe7 {[%emt 0:00:33]} 16. Ne4 {[%emt 0:02:29]} Bxe4 {[%emt 0:11:12]} 17. Qxe4 {[%emt 0:00:08]} Nc6 {[%emt 0:00:33]} 18. h4 {[%emt 0:35:33]} h6 {[%emt 0:05:49]} 19. Nd4 {[%emt 0:09:42]} Nxd4 {[%emt 0:19:26]} 20. Bxd4 {[%emt 0:00:47]} Bxd4 {[%emt 0:00:02]} 1/2-1/2

[Event "Belt Road Women 2019"]
[Site "Shaoxing"]
[Date "2019.07.10"]
[Round "3.15"]
[White "Li, Yunshan"]
[Black "Zhou, Yafei"]
[Result "1-0"]
[ECO "E94"]
[WhiteElo "2254"]
[BlackElo "1720"]
[Annotator "NA"]
[PlyCount "105"]
[EventDate "2019.07.08"]
[EventType "swiss"]
[EventCountry "CHN"]
[SourceTitle "playchess.com"]
[Source "ChessBase"]
[SourceQuality "1"]
[TimeControl "5400+30"]

1. d4 {[%emt 0:00:00]} Nf6 {[%emt 0:00:00]} 2. c4 {[%emt 0:00:00]} g6 {[%emt 0:00:00]} 3. Nc3 {[%emt 0:00:00]} Bg7 {[%emt 0:00:00]} 4. e4 {[%emt 0:00:07]} d6 {[%emt 0:00:00]} 5. Nf3 {[%emt 0:00:47]} O-O {[%emt 0:00:01]} 6. Be2 {[%emt 0:01:11]} e5 {[%emt 0:00:12]} 7. Be3 {[%emt 0:00:24]} exd4 {[%emt 0:02:36]} 8. Nxd4 {[%emt 0:00:15]} Nbd7 {[%emt 0:01:51]} 9. O-O {[%emt 0:01:05]} Nc5 {[%emt 0:00:52]} 10. f3 {[%emt 0:00:39]} a5 {[%emt 0:02:29]} 11. b3 {[%emt 0:01:31]} Bd7 {[%emt 0:00:19]} 12. Qd2 {[%emt 0:01:28]} Re8 {[%emt 0:01:59]} 13. Rac1 {[%emt 0:03:02]} Qe7 {[%emt 0:09:42]} 14. Ndb5 {[%emt 0:14:41]} Bxb5 {[%emt 0:05:18]} 15. cxb5 {[%emt 0:04:42]} Rad8 {[%emt 0:05:58]} 16. Kh1 {[%emt 0:02:55]} Ne6 {[%emt 0:03:26]} 17. Bc4 {[%emt 0:06:00]} Qd7 {[%emt 0:13:27]} 18. Rfd1 {[%emt 0:10:56]} h5 {[%emt 0:03:35]} 19. Nd5 {[%emt 0:05:59]} b6 {[%emt 0:07:11]} 20. Qc2 {[%emt 0:11:51]} Nc5 {[%emt 0:09:53]} 21. Nxf6+ {[%emt 0:02:29]} Bxf6 {[%emt 0:01:07]} 22. e5 {[%emt 0:01:54]} Rxe5 {[%emt 0:13:55]} 23. Qxg6+ {[%emt 0:03:35]} Bg7 {[%emt 0:00:13]} 24. Bh6 {[%emt 0:02:58]} Ne6 {[%emt 0:00:21]} 25. Bxe6 {[%emt 0:00:34]} fxe6 {[%emt 0:00:23]} 26. Bxg7 {[%emt 0:10:29]} Qxg7 {[%emt 0:00:08]} 27. Qxg7+ {[%emt 0:00:08]} Kxg7 {[%emt 0:00:05]} 28. Rxc7+ {[%emt 0:00:02]} Kf6 {[%emt 0:00:16]} 29. Rc6 {[%emt 0:01:15]} Rxb5 {[%emt 0:01:01]} 30. Rdxd6 {[%emt 0:01:43]} Rxd6 {[%emt 0:00:07]} 31. Rxd6 {[%emt 0:00:02]} a4 {[%emt 0:00:14]} 32. Rd3 {[%emt 0:01:50]} axb3 {[%emt 0:01:11]} 33. axb3 {[%emt 0:01:02]} Rb4 {[%emt 0:00:20]} 34. Kg1 {[%emt 0:01:32]} Kf5 {[%emt 0:00:46]} 35. Kf2 {[%emt 0:00:15]} e5 {[%emt 0:01:17]} 36. Ke3 {[%emt 0:06:31]} h4 {[%emt 0:00:37]} 37. g3 {[%emt 0:02:20]} hxg3 {[%emt 0:01:00]} 38. hxg3 {[%emt 0:00:02]} Kg5 {[%emt 0:00:48]} 39. Kd2 {[%emt 0:00:20]} e4 {[%emt 0:02:02]} 40. Rd5+ {[%emt 0:00:45]} Kf6 {[%emt 0:00:22]} 41. Kc3 {[%emt 0:00:11]} e3 {[%emt 0:03:35]} 42. Rd3 {[%emt 0:00:25]} Rb5 {[%emt 0:03:13]} 43. Rxe3 {[%emt 0:00:04]} Rc5+ {[%emt 0:00:27]} 44. Kd4 {[%emt 0:00:25]} Kf5 {[%emt 0:00:48]} 45. b4 {[%emt 0:00:29]} Rc1 {[%emt 0:00:12]} 46. Re5+ {[%emt 0:00:38]} Kf6 {[%emt 0:00:09]} 47. Rb5 {[%emt 0:00:20]} Rd1+ {[%emt 0:00:28]} 48. Ke4 {[%emt 0:00:05]} Rd6 {[%emt 0:00:05]} 49. g4 {[%emt 0:00:13]} Kg6 {[%emt 0:00:16]} 50. f4 {[%emt 0:00:19]} Kf6 {[%emt 0:00:09]} 51. g5+ {[%emt 0:00:20]} Kg6 {[%emt 0:00:37]} 52. Ke5 {[%emt 0:00:05]} Rc6 {[%emt 0:00:06]} 53. Kd5 {[%emt 0:00:05]} 1-0